Cogmind - Beta 12 *** ADVENTURER MODE // 2023.06.18 @ 03:55:43 Player: Ms. V3-11A Result: Destroyed by 99-TNT with 99-TNT's Nukerbomber Performance ------------- Evolutions (4) 2000 Regions Visited (14) 2800 Robots Destroyed (172) 860 Value Destroyed (6087) 6087 Prototype IDs (50) 1000 Alien Tech Used (0) 0 Bonus (884) 884 TOTAL SCORE: 13631 Bonus ------- Follower Combat Kills 311 Aligned with FarCom 300 Met Data Miner 300 Met Imprinter 300 Friendly Fire -327 Cogmind --------- Core Integrity 0/850 Matter 44/300 Energy 73/100 System Corruption 15% Temperature Cool (36) Movement Core (1350) Ox26 Location -6/Zion Parts ------- > --- POWER (1) -------- (None) > --- PROPULSION (4) --- (None) > --- UTILITY (8) ------ Huge Storage Unit Machine Analyzer Advanced Terrain Scan Processor Advanced Targeting Computer Improved Hacking Suite > --- WEAPON (2) ------- (None) > --- INVENTORY (25) --- High-capacity Storage Unit Compact Battery (200) Advanced Energy Well (500) Large Matter Pod (0) Advanced Terrain Scan Processor Hacking Drone Bay Improved EM Pulse Cannon Improved EM Pulse Cannon Improved EM Pulse Cannon Proton Cannon Neutron Cannon Slug Cannon Mini Assault Cannon Heavy Flak Cannon Heavy Flak Cannon Heavy Flak Cannon Advanced EMP Blaster Heavy Missile Launcher Field Lobotomy Kit (4) Peak State ------------ > --- POWER ------------ Antimatter Reactor > --- PROPULSION ------- Heavy Treads Heavy Treads > --- UTILITY ---------- Huge Storage Unit Advanced Terrain Scanner Advanced Terrain Scan Processor Makeshift Salvage Targeting Computer Improved Heavy Armor Plating Improved Shield Generator Improved Hacking Suite > --- WEAPON ----------- Heavy Machine Gun Mini Assault Cannon > --- INVENTORY -------- Angular Momentum Engine Improved Medium Treads Improved Medium Treads Heavy Treads Heavy Treads Advanced Heat Sink High-capacity Storage Unit Compact Battery Advanced Energy Well Large Matter Pod Advanced Sensor Array Advanced Terrain Scan Processor Advanced Terrain Scan Processor Advanced Targeting Computer Improved Shield Generator Proton Cannon Neutron Cannon Flak Gun Heavy Machine Gun Magnetic Acceleration Cannon Heavy Flak Cannon Advanced EMP Blaster Field Lobotomy Kit [Rating: 86] Favorites ----------- Power Antimatter Reactor Engine Improved Ion Engine Power Core Neutrino Core Reactor Antimatter Reactor Propulsion Light Treads Treads Light Treads Leg Aluminum Leg Utility Huge Storage Unit Device Improved Shield Generator Storage Huge Storage Unit Processor Advanced Terrain Scan Processor Hackware Improved Hacking Suite Protection Improved Light Armor Plating Weapon Heavy Machine Gun Energy Gun Spread Laser Energy Cannon Cooled Particle Cannon Ballistic Gun Heavy Machine Gun Ballistic Cannon Mini Assault Cannon Launcher Mini Grenade Launcher Special Weapon Remote Datajack Build | -11 -10 -10 -10 -9 -8 -7 -7 -7 -7 -6 -6 -6 -6 -6 ------- Run | Jun Mat Min Exi Min Mat Fac Low Low Dat Pro Fac Low Low Zio Slots Evolved 8 | . . . . . 4 2 . . . . 2 . . . Power . | . . . . . . . . . . . . . . . Propulsion 2 | . . . . . 2 . . . . . . . . . Utility 6 | . . . . . 2 2 . . . . 2 . . . Weapon . | . . . . . . . . . . . . . . . Parts Attached 132 | . 14 4 . 2 14 10 2 4 . 15 39 8 8 12 Power 17 | . 3 1 . . 2 2 1 . . 1 3 1 1 2 Engine 11 | . 3 1 . . 2 2 1 . . . . . . 2 Core 3 | . . . . . . . . . . . 1 1 1 . Reactor 3 | . . . . . . . . . . 1 2 . . . Propulsion 34 | . 6 2 . 1 5 1 1 . . 4 10 2 . 2 Treads 24 | . 3 2 . 1 5 1 1 . . 3 4 2 . 2 Leg 10 | . 3 . . . . . . . . 1 6 . . . Wheel . | . . . . . . . . . . . . . . . Hover . | . . . . . . . . . . . . . . . Flight . | . . . . . . . . . . . . . . . Utility 44 | . 2 1 . . 5 3 . 4 . 4 17 1 4 3 Device 19 | . 1 1 . . 1 2 . 2 . . 8 . 3 1 Storage 4 | . 1 . . . 1 . . . . 2 . . . . Processor 7 | . . . . . 1 1 . . . . 3 1 1 . Hackware 2 | . . . . . . . . . . . 2 . . . Protection 12 | . . . . . 2 . . 2 . 2 4 . . 2 Artifact . | . . . . . . . . . . . . . . . Weapon 37 | . 3 . . 1 2 4 . . . 6 9 4 3 5 Energy Gun 9 | . 3 . . . 1 . . . . 4 . . . 1 Energy Cannon 8 | . . . . . . 1 . . . 1 2 . 2 2 Ballistic Gun 5 | . . . . . . 1 . . . . 4 . . . Ballistic Cannon 11 | . . . . . 1 2 . . . . 2 4 1 1 Launcher 2 | . . . . 1 . . . . . . . . . 1 Special Weapon 2 | . . . . . . . . . . 1 1 . . . Impact Weapon . | . . . . . . . . . . . . . . . Slashing Weapon . | . . . . . . . . . . . . . . . Piercing Weapon . | . . . . . . . . . . . . . . . Special Melee Weapon . | . . . . . . . . . . . . . . . Unidentified Prototypes 7 | . . 1 . . . 3 . . . 2 1 . . . Corrupted Parts 1 | . . . . . . . . . . . . . 1 . System Corruption 1 | . . . . . . . . . . . . . 1 . Parts Lost 49 | . . 1 . 1 2 . . 1 . 16 3 8 . 17 Power 7 | . . . . . 1 . . . . 1 . 2 . 3 Propulsion 13 | . . . . 1 1 . . . . 3 2 2 . 4 Utility 19 | . . 1 . . . . . 1 . 7 1 3 . 6 Weapon 10 | . . . . . . . . . . 5 . 1 . 4 Highest Loss Streak 16 | . . 1 . 1 1 . . 1 . 16 1 5 . 11 To Critical Strikes 1 | . . . . . . . . . . 1 . . . . Average Slot Usage (%) 87 | . 97 100 100 99 94 91 91 91 92 73 81 76 82 84 Engine 5 | . 13 14 14 14 8 7 6 7 7 4 . . . . Reactor 2 | . . . . . . . . . . 2 5 4 . . Treads 16 | . 5 7 28 27 35 30 30 30 30 22 7 12 13 13 Leg 5 | . 22 20 . . . . . . . 2 10 . . . Device 12 | . 12 14 14 14 9 15 15 14 15 9 12 4 12 11 Storage 8 | . 14 14 14 14 9 7 7 7 7 7 6 6 6 6 Processor 11 | . . . . . 8 14 15 12 7 4 12 20 23 25 Hackware 2 | . . . . . . . . . . . 4 6 6 6 Protection 4 | . . . . . 8 7 7 9 15 9 5 5 . . Energy Gun 6 | . 27 28 28 20 11 . . . . . . . . . Energy Cannon 1 | . . . . . . . . . . 2 1 . 1 5 Ballistic Gun 1 | . . . . . . . . . . . 6 4 . . Ballistic Cannon 4 | . . . . . 2 6 7 7 7 4 3 7 10 6 Naked Turns . | . . . . . . . . . . . . . . . Heaviest Build 129 | 11 54 56 56 56 103 107 107 111 111 111 129 121 114 114 Greatest Support 140 | 20 40 40 40 40 80 80 80 80 80 80 140 140 140 140 Greatest Overweight (x) 28 | . 5 2 1 1 1 1 1 1 1 28 4 . . 1 Average Overweight (x) . | . . 1 1 1 1 1 1 1 1 1 . . . . Largest Inventory Capacity 25 | 8 20 20 20 20 25 25 25 25 25 25 25 25 25 25 Average Capacity 23 | 8 14 20 20 20 24 25 25 25 25 25 25 25 25 25 Most Carried 25 | 5 19 20 20 20 25 25 25 25 23 23 25 24 22 25 Average Carried 21 | 5 10 19 19 19 21 23 25 24 23 21 23 23 19 22 Final Capacity 25 | 8 20 20 20 20 25 25 25 25 25 25 25 25 25 25 Final Carried 25 | 4 19 20 20 20 25 25 25 23 23 18 24 22 19 19 Class Distribution -------------------- 31% | Mutant 24% | Hacker-Skirmisher 21% | Scavenger-Mutant 13% | Hacker-Mutant 8% | Scavenger-Skirmisher Dominant Class ---------------- Mutant | -10/Materials Mutant | -10/Mines Mutant | -10/Exiles Mutant | -9/Mines Mutant | -8/Materials Scavenger-Skirmisher | -7/Factory Scavenger-Mutant | -7/Lower Caves Scavenger-Mutant | -7/Lower Caves Scavenger-Mutant | -7/Data Miner Scavenger-Mutant | -6/Proximity Caves Hacker-Skirmisher | -6/Factory Hacker-Mutant | -6/Lower Caves Hacker-Skirmisher | -6/Lower Caves Hacker-Skirmisher | -6/Zion Resources | -11 -10 -10 -10 -9 -8 -7 -7 -7 -7 -6 -6 -6 -6 -6 ----------- Run | Jun Mat Min Exi Min Mat Fac Low Low Dat Pro Fac Low Low Zio Matter Collected 5108 | 200 206 63 . 57 327 134 317 70 . 459 1829 672 425 349 Remotely . | . . . . . . . . . . . . . . . Salvage Created 6428 | . 276 75 . 121 1125 106 137 104 . 695 2699 611 106 373 Parts 325 | . 21 7 . 6 67 4 8 5 . 19 130 24 3 31 Haulers Intercepted 6 | . 1 . . . 4 1 . . . . . . . . Recyclers Shooed 3 | . 1 . . 2 . . . . . . . . . . Parts Field Recycled . | . . . . . . . . . . . . . . . Retrieved Matter . | . . . . . . . . . . . . . . . Parts Self-Destructed 74 | . . . . . . . 8 8 . 29 . 29 . . Prevented . | . . . . . . . . . . . . . . . Kills | -11 -10 -10 -10 -9 -8 -7 -7 -7 -7 -6 -6 -6 -6 -6 ------- Run | Jun Mat Min Exi Min Mat Fac Low Low Dat Pro Fac Low Low Zio Combat Hostiles Destroyed 143 | . 10 3 . 7 24 3 6 5 . 13 47 17 3 5 Guns 59 | . 10 3 . 3 17 . . . . 2 17 7 . . Cannons 77 | . . . . . 7 3 5 5 . 10 30 10 3 4 AOE 5 | . . . . 4 . . . . . . . . . 1 Classes Destroyed 22 | . 3 1 . 3 4 1 1 . . 1 3 . 2 3 Worker 6 | . . . . . 2 . . . . . 4 . . . Builder 3 | . . . . 1 1 1 . . . . . . . . Tunneler 2 | . . 2 . . . . . . . . . . . . Hauler 6 | . 1 . . . 4 1 . . . . . . . . Recycler 2 | . . . . . 2 . . . . . . . . . Mechanic 2 | . . . . . 1 . . . . . 1 . . . Operator 1 | . . . . . . . . . . . 1 . . . Watcher 2 | . . . . . . . . . . . 2 . . . Swarmer 34 | . 6 3 . . 9 . 3 4 . 1 3 5 . . Grunt 56 | . 4 . . . 11 2 1 . . 7 24 7 . . Brawler 6 | . . . . . . . . . . 4 1 1 . . Duelist 2 | . . . . . . . . . . . 2 . . . Sentry 11 | . . . . . 4 . . 1 . 1 4 1 . . Demolisher 2 | . . . . 2 . . . . . . . . . . Hunter 9 | . . . . . . 1 1 . . . 5 2 . . Programmer 10 | . . . . . . . 1 . . . 8 1 . . Zionite 14 | . . . . . . . . . . . . . . 14 Samaritan 2 | . . . . . . . . . . . . . 2 . Tinkerer 1 | . . . . . . . . . . . . . . 1 Thief 1 | . . . . . . . . . . . . . 1 . Assembled 5 | . . . . 5 . . . . . . . . . . Thug 1 | . . . . . . . . . . . . . 1 . Butcher 1 | . . . . . . . . . . . . . 1 . Mutant 4 | . . . . . . . . . . . . . . 4 Best Kill Streak 8 | . 6 2 . 3 8 2 4 4 . 6 6 5 2 8 Combat Bots Only 6 | . 6 2 . 3 5 2 4 4 . 6 4 5 2 3 Max Kills in Single Turn 2 | . 1 1 . 2 2 1 1 1 . 1 2 1 1 2 Gunslinging 1 | . . . . . 1 . . . . . . . . . Exploded 1 | . . . . 1 . . . . . . . . . 1 Melee . | . . . . . . . . . . . . . . . Uniques/NPCs Destroyed 1 | . . . . . . . . . . . . . . 1 Imprinter (-6/Zion) Combat | -11 -10 -10 -10 -9 -8 -7 -7 -7 -7 -6 -6 -6 -6 -6 -------- Run | Jun Mat Min Exi Min Mat Fac Low Low Dat Pro Fac Low Low Zio Damage Taken 12228 | . 390 16 . 417 771 137 223 158 . 2479 2658 2120 100 2759 Core 1458 | . 65 . . 26 6 8 6 19 . 428 204 208 . 488 Absorbed by Shields 2048 | . . . . . . 36 83 61 . 253 935 321 37 322 Reduced by Siege Mode 346 | . . . . . . . . . . . 54 201 . 91 Redirected to Shielding 59 | . . . . . . . . . . . . . . 59 Regen/Repaired (Parts) 431 | . . . . . . . . . . . 431 . . . Core Remaining (%) 73 | 100 . . . 63 98 . . . . 34 . . . . Volleys Fired 583 | . 37 4 . 19 70 22 18 7 . 59 210 54 22 61 Largest 2 | . 2 2 . 2 2 1 1 1 . 2 2 2 2 2 Hottest 130 | . 90 130 . 130 128 60 60 60 . 116 90 106 101 122 Shots Fired 930 | . 68 8 . 29 104 22 18 7 . 67 386 93 41 87 Gun 436 | . 68 8 . 20 90 . . . . 23 192 30 . 5 Cannon 479 | . . . . . 14 22 18 7 . 43 191 63 41 80 Launcher 11 | . . . . 9 . . . . . . . . . 2 Special 4 | . . . . . . . . . . 1 3 . . . Kinetic 595 | . . . . . 14 22 18 7 . 40 309 93 36 56 Thermal 284 | . 68 8 . 20 90 . . . . 18 74 . . 6 Explosive 11 | . . . . 9 . . . . . . . . . 2 Electromagnetic 36 | . . . . . . . . . . 8 . . 5 23 Robot Hit Streak 67 | . 13 7 . 15 43 26 7 4 . 34 25 67 21 25 Robot Miss Streak 5 | . 2 5 . 5 4 1 2 1 . 1 2 1 1 2 Penetration Max 1 | . . . . . . 1 . . . . . . . . Secondary Targets 4 | . 1 . . . 2 . . . . 1 . . . . Max Gunslinging Chain 1 | . 1 . . . 1 . . . . 1 . . . . Shots Hit Robots 711 | . 52 6 . 19 91 18 10 6 . 61 271 79 32 66 Core Hits 365 | . 19 9 . 28 90 3 5 4 . 17 105 47 6 32 Critical Kills . | . . . . . . . . . . . . . . . Critical Parts Destroyed . | . . . . . . . . . . . . . . . Critical Strikes 17 | . 1 . . 1 . 1 . . . 7 4 1 . 2 Burn 5 | . 1 . . 1 . . . . . 3 . . . . Blast 12 | . . . . . . 1 . . . 4 4 1 . 2 Melee Attacks . | . . . . . . . . . . . . . . . Impact . | . . . . . . . . . . . . . . . Slashing . | . . . . . . . . . . . . . . . Piercing . | . . . . . . . . . . . . . . . Sneak Attacks . | . . . . . . . . . . . . . . . Combat Hostiles . | . . . . . . . . . . . . . . . Follow-up Attacks . | . . . . . . . . . . . . . . . Damage Inflicted 19377 | . 656 100 . 531 2232 997 446 372 . 2187 6941 1994 936 1985 Guns 6539 | . 625 86 . 244 1371 . . . . 394 3140 563 . 116 Cannons 12147 | . . . . . 739 997 446 372 . 1793 3772 1431 936 1661 Explosions 598 | . . . . 268 122 . . . . . . . . 208 Melee . | . . . . . . . . . . . . . . . Ramming 93 | . 31 14 . 19 . . . . . . 29 . . . Kinetic 13647 | . . . . . 739 997 446 372 . 1741 5332 1994 816 1210 Thermal 4342 | . 625 86 . 244 1371 . . . . 296 1580 . . 140 Explosive 598 | . . . . 268 122 . . . . . . . . 208 Electromagnetic 697 | . . . . . . . . . . 150 . . 120 427 Impact . | . . . . . . . . . . . . . . . Slashing . | . . . . . . . . . . . . . . . Piercing . | . . . . . . . . . . . . . . . Highest Corruption 24 | . . . . . 1 . . . . 24 4 4 5 15 Average Corruption 5 | . . . . . 1 . . . . 23 1 4 4 12 Corruption Purged . | . . . . . . . . . . . . . . . Corruption Blocked . | . . . . . . . . . . . . . . . Effects 154 | . . . . . 3 . . . . 30 52 23 29 17 Message Errors 40 | . . . . . 1 . . . . 9 18 7 4 1 Matter Fused 34 | . . . . . 1 . . . . 8 7 6 8 4 Heat Flow Errors 12 | . . . . . . . . . . 1 6 . 3 2 Energy Discharges 25 | . . . . . . . . . . 4 8 4 6 3 Parts Rejected 1 | . . . . . . . . . . . 1 . . . Parts Fused 3 | . . . . . . . . . . . . . 2 1 Data Loss (minor) 19 | . . . . . 1 . . . . 4 7 3 2 2 Data Loss (major) 5 | . . . . . . . . . . 3 . 1 1 . Misfires 8 | . . . . . . . . . . 1 3 1 2 1 Alerts 3 | . . . . . . . . . . . 1 1 1 . Weapon Failures 4 | . . . . . . . . . . . 1 . . 3 Overload Shots 2 | . . . . . . . . . . . 2 . . . Effects 1 | . . . . . . . . . . . 1 . . . Energy Bleed 1 | . . . . . . . . . . . 1 . . . Overflow Damage 680 | . . . . 4 1 134 99 37 . 131 100 3 94 77 Projectiles 676 | . . . . . 1 134 99 37 . 131 100 3 94 77 Explosions 4 | . . . . 4 . . . . . . . . . . Melee . | . . . . . . . . . . . . . . . Knockbacks 67 | . . . . . 3 5 6 1 . 2 19 20 7 4 Impact . | . . . . . . . . . . . . . . . Kinetic 64 | . . . . . 3 5 3 1 . 2 19 20 7 4 Secondary 3 | . . . . . . . 3 . . . . . . . Self-Inflicted Damage 208 | . . . . 64 83 . . . . . . . . 61 Shots 5 | . . . . 2 1 . . . . . . . . 2 Rammed 7 | . 1 . . 3 1 . . . . . 2 . . . Targets Rammed 12 | . 4 1 . 3 1 . . . . . 3 . . . Kicked 4 | . 3 1 . . . . . . . . . . . . Crushed 1 | . . . . . . . . . . . 1 . . . Highest Temperature 500 | . 375 84 . 358 261 417 16 42 . 462 500 264 232 345 Average Temperature 97 | . 84 47 . 189 73 87 9 21 . 173 98 83 64 119 Received Heat Transfer 3571 | . 165 . . . 432 66 . 8 . 629 934 787 36 514 Effects 18 | . 1 . . 2 . . . . . 4 5 2 2 2 Shutdowns 3 | . . . . 1 . . . . . . 2 . . . Energy Bleed 5 | . . . . 1 . . . . . 1 1 . . 2 Interference 6 | . . . . . . . . . . 2 . 2 2 . Short Circuit 1 | . . . . . . . . . . . 1 . . . Damage (minor) 3 | . 1 . . . . . . . . 1 1 . . . Siege Activations 6 | . . . . . . . . . . . 4 1 . 1 Total Turns 228 | . . . . . . . . . . . 124 76 . 28 Longest Duration 76 | . . . . . . . . . . . 47 76 . 28 Robots Corrupted . | . . . . . . . . . . . . . . . Combat Hostiles . | . . . . . . . . . . . . . . . Parts Fried 6 | . . . . . . . 2 . . . . . 3 1 Impact Corruptions 3 | . . . . . . . 3 . . . . . . . Robots Melted 1 | . . . . . . . . . . 1 . . . . Combat Hostiles 1 | . . . . . . . . . . 1 . . . . Parts Melted 12 | . 2 . . 2 3 . . . . 2 2 . . 1 Heat Transferred 7780 | . 1747 139 . 530 2395 . . . . 814 2098 . . 57 Parts Sabotaged 2 | . . . . . . . . . . 2 . . . . Parts Stolen 1 | . . . . . . . . . . . . . 1 . Parts Stripped . | . . . . . . . . . . . . . . . Power Chain Reactions . | . . . . . . . . . . . . . . . Missiles Intercepted . | . . . . . . . . . . . . . . . Alert | -11 -10 -10 -10 -9 -8 -7 -7 -7 -7 -6 -6 -6 -6 -6 ------- Run | Jun Mat Min Exi Min Mat Fac Low Low Dat Pro Fac Low Low Zio Peak Influence 334 | . 248 95 . 92 263 200 . . . . 334 . . . Initial 82 | . . . . . 12 82 . . . . . . . . Average 64 | . 41 20 . 25 127 79 . . . . 65 . . . Maximum Alert Level 1 | . 1 . . . 1 1 . . . . 1 . . . Low Security (%) 93 | 100 95 100 . 100 77 93 . . . . 96 . . . Level 1 6 | . 4 . . . 22 6 . . . . 3 . . . Level 2 . | . . . . . . . . . . . . . . . Level 3 . | . . . . . . . . . . . . . . . Level 4 . | . . . . . . . . . . . . . . . Level 5 . | . . . . . . . . . . . . . . . High Security . | . . . . . . . . . . . . . . . Max Security . | . . . . . . . . . . . . . . . Squads Dispatched 30 | . 2 . . . 6 2 . . . 1 19 . . . Investigation 11 | . 2 . . . 2 . . . . . 7 . . . Extermination 9 | . . . . . . 1 . . . . 8 . . . Reinforcement 6 | . . . . . 1 1 . . . . 4 . . . Assault 1 | . . . . . . . . . . 1 . . . . Garrison 3 | . . . . . 3 . . . . . . . . . Intercept . | . . . . . . . . . . . . . . . Searches Triggered . | . . . . . . . . . . . . . . . Data Miner Redirects 6 | . . . . . . . . . . . 6 . . . Construction Impeded . | . . . . . . . . . . . . . . . Haulers Reinforced 2 | . . . . . . 1 . . . . 1 . . . Active Scanning Responses . | . . . . . . . . . . . . . . . Cargo Convoy Interrupts . | . . . . . . . . . . . . . . . Stealth | -11 -10 -10 -10 -9 -8 -7 -7 -7 -7 -6 -6 -6 -6 -6 --------- Run | Jun Mat Min Exi Min Mat Fac Low Low Dat Pro Fac Low Low Zio Distress Signals 8 | . . . . . 5 . . . . . 3 . . . Communications Jammed . | . . . . . . . . . . . . . . . Distress Signals . | . . . . . . . . . . . . . . . Times Spotted 208 | . 24 4 . 6 32 4 6 5 . 25 57 17 4 24 Peak Tracking Total 8 | . 5 2 . 2 5 3 4 4 . 7 6 7 2 8 Tactical Retreats 10 | . 1 1 . 1 3 1 . . . 1 1 . . 1 Traps | -11 -10 -10 -10 -9 -8 -7 -7 -7 -7 -6 -6 -6 -6 -6 ------- Run | Jun Mat Min Exi Min Mat Fac Low Low Dat Pro Fac Low Low Zio Traps Triggered 2 | . 2 . . . . . . . . . . . . . Indirectly . | . . . . . . . . . . . . . . . Trap Hack Attempts . | . . . . . . . . . . . . . . . Triggered . | . . . . . . . . . . . . . . . Disarmed . | . . . . . . . . . . . . . . . Reprogrammed . | . . . . . . . . . . . . . . . Reused . | . . . . . . . . . . . . . . . Traps Extracted . | . . . . . . . . . . . . . . . Installed . | . . . . . . . . . . . . . . . Triggered 1 | . . . . . . . 1 . . . . . . . Machines | -11 -10 -10 -10 -9 -8 -7 -7 -7 -7 -6 -6 -6 -6 -6 ---------- Run | Jun Mat Min Exi Min Mat Fac Low Low Dat Pro Fac Low Low Zio Machines Disabled 11 | . . . . . 1 . . . . . 5 2 . 3 Max in Single Turn 2 | . . . . . 1 . . . . . 1 1 . 2 Garrison Access 3 | . . . . . . . . . . . 3 . . . Machines Repaired . | . . . . . . . . . . . . . . . Machines Sabotaged . | . . . . . . . . . . . . . . . Overloaded Fab Kills . | . . . . . . . . . . . . . . . Hacking | -11 -10 -10 -10 -9 -8 -7 -7 -7 -7 -6 -6 -6 -6 -6 --------- Run | Jun Mat Min Exi Min Mat Fac Low Low Dat Pro Fac Low Low Zio Machines Accessed 52 | . 7 1 2 . 8 3 3 2 4 . 21 1 . . Terminals 27 | . 6 . . . 6 3 . . . . 11 1 . . Fabricators 2 | . . . . . . . . . . . 2 . . . Repair Stations 4 | . 1 . . . . . . . . . 3 . . . Recycling Units 1 | . . . . . . . . . . . 1 . . . Scanalyzers 3 | . . . . . 2 . . . . . 1 . . . Garrison Access 3 | . . . . . . . . . . . 3 . . . Total Hacks 151 | . 18 1 5 . 19 7 9 7 28 . 51 6 . . Successful 117 | . 14 1 5 . 10 5 9 7 28 . 32 6 . . Failed 34 | . 4 . . . 9 2 . . . . 19 . . . Catastrophic 5 | . . . . . 3 1 . . . . 1 . . . Database Lockouts . | . . . . . . . . . . . . . . . Manual 27 | . 5 . 1 . . 2 . . . . 19 . . . Terminals 67 | . 17 . . . 11 7 . . . . 26 6 . . Fabricators 4 | . . . . . . . . . . . 4 . . . Repair Stations 15 | . 1 . . . . . . . . . 14 . . . Recycling Units 1 | . . . . . . . . . . . 1 . . . Scanalyzers 10 | . . . . . 8 . . . . . 2 . . . Garrison Access 4 | . . . . . . . . . . . 4 . . . Terminal Hacks 81 | . 11 1 5 . 2 3 9 7 28 . 9 6 . . Record 35 | . . . 4 . . . 7 6 11 . 1 6 . . Part Schematic 14 | . . . . . . 1 . . 10 . 3 . . . Robot Schematic 4 | . . . . . . . . . 4 . . . . . Robot Analysis 2 | . 1 . . . . . . . . . 1 . . . Prototype ID Bank 6 | . 3 . . . . . . . 3 . . . . . Open Door 4 | . . 1 . . . . 2 1 . . . . . . Branch Access Points 4 | . 1 . . . 1 1 . . . . 1 . . . Emergency Access Points 1 | . 1 . . . . . . . . . . . . . Terminal Index 2 | . 1 . . . . . . . . . 1 . . . Repair Station Index 1 | . . . . . . . . . . . 1 . . . Locate Traps 2 | . 2 . . . . . . . . . . . . . Recall Reinforcements 1 | . . . . . 1 . . . . . . . . . Registered Components 3 | . 1 . . . . 1 . . . . 1 . . . Zone Layout 1 | . 1 . . . . . . . . . . . . . EX-Prototype ID Bank 1 | . . . 1 . . . . . . . . . . . Fabricator Hacks 4 | . . . . . . . . . . . 4 . . . Load Schematic 2 | . . . . . . . . . . . 2 . . . Build 2 | . . . . . . . . . . . 2 . . . Repair Station Hacks 8 | . . . . . . . . . . . 8 . . . Scan Component 5 | . . . . . . . . . . . 5 . . . Repair 3 | . . . . . . . . . . . 3 . . . Recycling Unit Hacks 1 | . . . . . . . . . . . 1 . . . Retrieve Components 1 | . . . . . . . . . . . 1 . . . Scanalyzer 10 | . . . . . 8 . . . . . 2 . . . Insert Component 7 | . . . . . 6 . . . . . 1 . . . Analyze 3 | . . . . . 2 . . . . . 1 . . . Garrison Access Hacks 3 | . . . . . . . . . . . 3 . . . Seal Access 3 | . . . . . . . . . . . 3 . . . Unauthorized Hacks 10 | . 3 . . . . 2 . . . . 5 . . . Terminals 9 | . 2 . . . . 2 . . . . 5 . . . Assimilate 1 | . . . . . . . . . . . 1 . . . Botnet 8 | . 2 . . . . 2 . . . . 4 . . . Fabricators . | . . . . . . . . . . . . . . . Repair Stations 1 | . 1 . . . . . . . . . . . . . Mechanics 1 | . 1 . . . . . . . . . . . . . Recycling Units . | . . . . . . . . . . . . . . . Scanalyzers . | . . . . . . . . . . . . . . . Garrison Access . | . . . . . . . . . . . . . . . Data Cores Recovered . | . . . . . . . . . . . . . . . Used . | . . . . . . . . . . . . . . . Hacking Detections 33 | . 4 . . . 8 3 . . . . 17 1 . . Full Trace Events 12 | . 1 . . . 3 . . . . . 7 1 . . Feedback Events 1 | . . . . . 1 . . . . . . . . . Corruption 1 | . . . . . 1 . . . . . . . . . Feedback Blocked . | . . . . . . . . . . . . . . . Robot Schematics Acquired 7 | . . . . . . . . . 4 . . . . 3 Robots Built . | . . . . . . . . . . . . . . . Authchips . | . . . . . . . . . . . . . . . Time . | . . . . . . . . . . . . . . . Total Robot Build Rating . | . . . . . . . . . . . . . . . Part Schematics Acquired 31 | . . . . . 1 1 . . 10 . 4 . . 15 Parts Built 4 | . . . . . . . . . . . 4 . . . Authchips . | . . . . . . . . . . . . . . . Time 212 | . . . . . . . . . . . 212 . . . Total Part Build Rating 24 | . . . . . . . . . . . 24 . . . Parts Repaired 3 | . . . . . . . . . . . 3 . . . Time 137 | . . . . . . . . . . . 137 . . . Parts Recycled . | . . . . . . . . . . . . . . . Recycled Matter . | . . . . . . . . . . . . . . . Retrieved Matter . | . . . . . . . . . . . . . . . Retrieved Components 9 | . . . . . . . . . . . 9 . . . Parts Scanalyzed 2 | . . . . . 1 . . . . . 1 . . . Part Schematics Acquired 2 | . . . . . 1 . . . . . 1 . . . Parts Damaged . | . . . . . . . . . . . . . . . Bothacking | -11 -10 -10 -10 -9 -8 -7 -7 -7 -7 -6 -6 -6 -6 -6 ------------ Run | Jun Mat Min Exi Min Mat Fac Low Low Dat Pro Fac Low Low Zio Used RIF Installer . | . . . . . . . . . . . . . . . Robots Hacked . | . . . . . . . . . . . . . . . Non-combat . | . . . . . . . . . . . . . . . Combat . | . . . . . . . . . . . . . . . Robot Hacks Applied . | . . . . . . . . . . . . . . . Relay Couplers Released 1 | . . . . . . . . . . . 1 . . . Machine Destruction 1 | . . . . . . . . . . . 1 . . . Fabnet Peak Effective % . | . . . . . . . . . . . . . . . Robots Rewired . | . . . . . . . . . . . . . . . Allies Hacked 1 | . . . . . . . 1 . . . . . . . Hacks Repelled . | . . . . . . . . . . . . . . . Allies | -11 -10 -10 -10 -9 -8 -7 -7 -7 -7 -6 -6 -6 -6 -6 -------- Run | Jun Mat Min Exi Min Mat Fac Low Low Dat Pro Fac Low Low Zio Total Allies 4 | . . . . . . . 2 . . 2 . . . . Largest Group 2 | . . . . . . . 2 . . 1 1 . . . Highest-Rated Group 96 | . . . . . . . 45 . . 96 49 . . . Highest-Rated Ally 96 | . . . . . . . 25 . . 96 49 . . . Total Orders . | . . . . . . . . . . . . . . . Ally Attacks 42 | . . . . . . . 4 . . 37 1 . . . Total Damage 1839 | . . . . . . . 76 . . 1714 49 . . . Kills 8 | . . . . . . . . . . 8 . . . . Allies Corrupted . | . . . . . . . . . . . . . . . Allies Melted . | . . . . . . . . . . . . . . . Field Lobotomies 1 | . . . . . . . . . . 1 . . . . Intel | -11 -10 -10 -10 -9 -8 -7 -7 -7 -7 -6 -6 -6 -6 -6 ------- Run | Jun Mat Min Exi Min Mat Fac Low Low Dat Pro Fac Low Low Zio Robot Analysis Total 2 | . 1 . . . . . . . . . 1 . . . Derelict Logs Recovered 8 | . . 1 . 2 . . . 1 . 1 . 1 2 . Drone Launches . | . . . . . . . . . . . . . . . Drone Recoveries . | . . . . . . . . . . . . . . . Exploration | -11 -10 -10 -10 -9 -8 -7 -7 -7 -7 -6 -6 -6 -6 -6 ------------- Run | Jun Mat Min Exi Min Mat Fac Low Low Dat Pro Fac Low Low Zio Turns Passed 20455 | 1 1538 1247 1074 599 1469 781 861 1149 200 1803 5683 1000 1151 1899 Spaces Moved 8067 | 1 716 305 447 221 499 293 322 470 84 463 2161 492 581 1012 Core 4 | . 2 . . . . . . . . 2 . . . . Treads 6393 | . 165 143 447 221 499 293 322 470 84 445 1219 492 581 1012 Legs 1670 | 1 549 162 . . . . . . . 16 942 . . . Wheels . | . . . . . . . . . . . . . . . Hover . | . . . . . . . . . . . . . . . Flight . | . . . . . . . . . . . . . . . Fastest Speed 120 | 120 120 240 240 240 240 240 240 240 240 240 160 160 160 160 Average Speed 203 | 120 187 250 240 240 240 240 240 240 240 289 185 160 160 161 Slowest Speed 1450 | 120 300 260 240 240 240 240 240 240 240 1450 400 160 160 240 Overloaded Moves . | . . . . . . . . . . . . . . . Propulsion Burnouts . | . . . . . . . . . . . . . . . Robots Hopped . | . . . . . . . . . . . . . . . Cave-ins Triggered . | . . . . . . . . . . . . . . . Exploration Rate (%) 55 | 2 93 63 70 53 41 9 55 63 70 69 43 63 59 86 Regions Visited 14 Branch Regions 10 Pre-discovered Areas 5 | . . 1 1 . . . . . 1 . . 1 1 . Known Exits Taken 3 | . 1 . . . . 1 . . . . 1 . . . Unknown Exits Taken 11 | 1 . 1 1 1 1 . 1 1 1 1 . 1 1 . Scrap Searched 12 | . . 1 . 2 . . 1 2 . . . 1 2 3 Spaces Dug 17 | . . . . . . 1 1 . . 1 13 . 1 . Terrain Destroyed 196 | . . . . 97 30 6 10 1 . 12 34 . 6 . Melee . | . . . . . . . . . . . . . . . Projectile 70 | . . . . . 1 6 10 1 . 12 34 . 6 . AOE 126 | . . . . 97 29 . . . . . . . . . Terrain Rammed . | . . . . . . . . . . . . . . . Walls Destroyed . | . . . . . . . . . . . . . . . Machines Disabled . | . . . . . . . . . . . . . . . Actions | -11 -10 -10 -10 -9 -8 -7 -7 -7 -7 -6 -6 -6 -6 -6 --------- Run | Jun Mat Min Exi Min Mat Fac Low Low Dat Pro Fac Low Low Zio Total 11170 | 2 841 784 450 257 664 342 385 483 83 840 3472 617 762 1188 Wait 2171 | . 38 450 . 11 42 . 39 . . 300 999 53 149 90 Move 8053 | . 715 304 446 220 498 292 321 469 83 462 2160 491 580 1012 Hop . | . . . . . . . . . . . . . . . Pick Up 111 | . 19 10 2 1 23 7 2 . . 2 27 7 2 9 Fast Attach 46 | . 9 . . 1 1 4 1 . . 7 19 . 1 3 Attach 53 | . 3 3 . 1 8 5 . 2 . 8 7 6 4 6 Detach 11 | . 4 . . . 1 1 . . . 2 2 1 . . Swap 34 | . 2 2 . . 5 1 1 2 . . 13 2 3 3 Drop 95 | 2 10 10 2 1 15 10 3 3 . . 32 3 1 3 Fire 583 | . 37 4 . 19 70 22 18 7 . 59 210 54 22 61 Melee . | . . . . . . . . . . . . . . . Ram . | . . . . . . . . . . . . . . . Kick 4 | . 3 1 . . . . . . . . . . . . Crush 8 | . 1 . . 3 1 . . . . . 3 . . . Escape Stasis . | . . . . . . . . . . . . . . . Rewire 1 | . . . . . . . . . . . . . . 1 Trap . | . . . . . . . . . . . . . . . Miscellaneous . | . . . . . . . . . . . . . . . Route ------- -11/Junkyard -10/Materials (discovered 5 exits: [*Mat x3] / *Min x2) -10/Mines (discovered 2 exits: [*Mat] / *Exi) -10/Exiles (discovered 2 exits: [*Min x2]) -9/Mines -8/Materials -7/Factory (discovered 2 exits: *Low x2) -7/Lower Caves -7/Lower Caves (discovered 2 exits: Fac / *Dat) -7/Data Miner -6/Proximity Caves -6/Factory (discovered 5 exits: *Fac x3 / *Low x2) -6/Lower Caves -6/Lower Caves -6/Zion (discovered 1 exit: [*Pro]) History --------- Turn | Location | Event 2 | -11/Junkyard | Discovered new exit (range 0) 2 | -11/Junkyard | Entered Materials 173 | -10/Materials | Discovered new exit (range 9) 305 | -10/Materials | Build established: Mutant 418 | -10/Materials | Identified exit to Mines 489 | -10/Materials | Discovered new exit (range 11) 764 | -10/Materials | Discovered new exit (range 10) 1540 | -10/Materials | Entered Mines 1541 | -10/Mines | Learned location of Storage (-9) 1587 | -10/Mines | Found a damaged Exp. Sensor Array with a note attached 1592 | -10/Mines | Found Prototype Device 1605 | -10/Mines | Met a Derelict bent on vengeance 1617 | -10/Mines | Identified Exp. Sensor Array 1828 | -10/Mines | Discovered new exit (range 13) 1925 | -10/Mines | Met a Derelict who couldn't figure out how to use a Trap Extractor 2703 | -10/Mines | Learned 2 Materials zone layouts 2775 | -10/Mines | Deemed a non-threat by the Exiles lab entrance 2775 | -10/Mines | Discovered new exit (range 5) 2787 | -10/Mines | Entered Exiles 2826 | -10/Exiles | Discovered new exit (range 15) 2905 | -10/Exiles | Met 8R-AWN 2948 | -10/Exiles | Met EX-HEX 3030 | -10/Exiles | Met EX-BIN 3063 | -10/Exiles | Met EX-DEC 3078 | -10/Exiles | Learned location of Zion (-6) 3339 | -10/Exiles | Discovered new exit (range 10) 3552 | -10/Exiles | Aligned with FarCom system 3555 | -10/Exiles | Given EX-Vault access code 3612 | -10/Exiles | Opened EX-Vault 3629 | -10/Exiles | Found Field Lobotomy Kit 3678 | -10/Exiles | Warned to stay clear of 0b10 Research branches 3861 | -10/Exiles | Left Exiles lab with Field Lobotomy Kit 3861 | -10/Exiles | Entered Mines 4021 | -9/Mines | Assembled infested the area 4256 | -9/Mines | Received a Rocket Launcher from a helpful Derelict 4448 | -9/Mines | Discovered new exit (range 5) 4460 | -9/Mines | Entered Materials 4460 | -8/Materials | Evolved 4 slots: Propulsion x2, Utility x2 4762 | -8/Materials | Build established: Scavenger-Mutant 4961 | -8/Materials | Garrison activated, responded to threat 5398 | -8/Materials | Build established: Mutant 5797 | -8/Materials | Discovered new exit (range 15) 5929 | -8/Materials | Entered Factory 5929 | -7/Factory | Evolved 2 slots: Utility x2 6229 | -7/Factory | Build established: Scavenger-Skirmisher 6279 | -7/Factory | Identified exit to Lower Caves 6710 | -7/Factory | Entered Lower Caves 6876 | -7/Lower Caves | A Commander dispatched an escort 6908 | -7/Lower Caves | Learned location of 1 exit from Factory 6908 | -7/Lower Caves | Learned 8 Factory zone layouts 6908 | -7/Lower Caves | Learned Factory trap positions 6908 | -7/Lower Caves | Learned Research stockpile data 6908 | -7/Lower Caves | Learned Extension stockpile data 6908 | -7/Lower Caves | Learned Armory garrison access intel 6967 | -7/Lower Caves | Build established: Scavenger-Mutant 7532 | -7/Lower Caves | Discovered new exit (range 15) 7571 | -7/Lower Caves | Entered another Lower Caves area 7571 | -7/Lower Caves | Accompanied by 1 ally 7572 | -7/Lower Caves | Commander's escort returned to base 7714 | -7/Lower Caves | Learned Research garrison access intel 7929 | -7/Lower Caves | Discovered new exit (range 13) 8100 | -7/Lower Caves | Attracted the attention of an 0b10 checkpoint 8275 | -7/Lower Caves | Learned Factory security intel 8696 | -7/Lower Caves | Discovered new exit (range 11) 8720 | -7/Lower Caves | Entered Data Miner 8720 | -7/Data Miner | Discovered new exit (range 6) 8766 | -7/Data Miner | Met Data Miner 8809 | -7/Data Miner | Learned location of Section 7 (-2) 8809 | -7/Data Miner | Acquired the access code to Warlord's prototype stash 8848 | -7/Data Miner | Received God Mode back door access code from Data Miner 8920 | -7/Data Miner | Entered Proximity Caves 9009 | -6/Proximity Caves | Escorted by Enhanced Grunt 9325 | -6/Proximity Caves | Received a Behemoth hack from an annoying Tinkerer 9476 | -6/Proximity Caves | Attracted the attention of an 0b10 checkpoint 9830 | -6/Proximity Caves | Learned Factory trap positions 9900 | -6/Proximity Caves | Spotted B-75 Beast 9929 | -6/Proximity Caves | Allies destroyed B-75 Beast 10028 | -6/Proximity Caves | Attracted the attention of an 0b10 outpost 10058 | -6/Proximity Caves | System corruption reached 10% 10127 | -6/Proximity Caves | Core integrity fell below 50% 10134 | -6/Proximity Caves | Assimilated Y-64 Sentinel with FLK Orb 10161 | -6/Proximity Caves | Lost 16 parts (1p3n7u5w) 10350 | -6/Proximity Caves | Build established: Mutant 10655 | -6/Proximity Caves | Discovered new exit (range 13) 10723 | -6/Proximity Caves | Entered Factory 10723 | -6/Factory | Accompanied by 1 ally 10723 | -6/Factory | Evolved 2 slots: Utility x2 10724 | -6/Factory | Identified exit to Factory 10726 | -6/Factory | Loaded intel: 100 trap records 11376 | -6/Factory | Build established: Scavenger-Mutant 11752 | -6/Factory | Build established: Scavenger-Skirmisher 11981 | -6/Factory | Discovered exit to Factory (range 9) 12853 | -6/Factory | Build established: Hacker-Skirmisher 13341 | -6/Factory | Incoming investigation squad redirected 13428 | -6/Factory | Fabricated Hvy. Treads (x2) 13641 | -6/Factory | Incoming investigation squad redirected 13645 | -6/Factory | Repaired Antimatter Reactor 13837 | -6/Factory | Discovered exit to Factory (range 19) 14195 | -6/Factory | Incoming investigation squad redirected 14434 | -6/Factory | Incoming investigation squad redirected 14798 | -6/Factory | Incoming investigation squad redirected 14881 | -6/Factory | Fabricated Hvy. Treads (x2) 15561 | -6/Factory | Found Powered Armor 15715 | -6/Factory | Identified exit to Lower Caves 16272 | -6/Factory | Build established: Hacker-Mutant 16293 | -6/Factory | Repaired Hvy. Treads 16355 | -6/Factory | Repaired Broken Imp. Shield Generator 16378 | -6/Factory | Incoming investigation squad redirected 16406 | -6/Factory | Entered Lower Caves 16582 | -6/Lower Caves | Ambushed by research squad 17168 | -6/Lower Caves | Attracted the attention of an 0b10 base 17209 | -6/Lower Caves | Lost 5 parts (1p1n2u1w) 17282 | -6/Lower Caves | Learned Armory emergency access door positions 17282 | -6/Lower Caves | Learned Research terminal intel 17282 | -6/Lower Caves | Learned Extension garrison access intel 17374 | -6/Lower Caves | Discovered new exit (range 8) 17406 | -6/Lower Caves | Entered another Lower Caves area 18103 | -6/Lower Caves | Build established: Hacker-Skirmisher 18493 | -6/Lower Caves | Learned Factory security intel 18510 | -6/Lower Caves | Encountered a Warlord checkpoint 18536 | -6/Lower Caves | Discovered new exit (range 13) 18557 | -6/Lower Caves | Entered Zion 18617 | -6/Zion | System corruption cleaned by Quarantine Array 18650 | -6/Zion | Given the Hacking Drone Bay 18650 | -6/Zion | Found Prototype Device 18686 | -6/Zion | Discovered new exit (range 10) 20033 | -6/Zion | Build established: Hacker-Mutant 20121 | -6/Zion | Rebuked by Imprinter 20131 | -6/Zion | Attacked by Zionites 20133 | -6/Zion | Destroyed Imprinter 20136 | -6/Zion | Core integrity fell below 50% 20137 | -6/Zion | Extracted access codes from Imprinter's data core 20169 | -6/Zion | System corruption reached 10% 20247 | -6/Zion | Lost 5 parts (1p1n3u) 20437 | -6/Zion | 99-TNT came to Zion's defense 20452 | -6/Zion | Core integrity fell below 20% 20456 | -6/Zion | Destroyed by 99-TNT with 99-TNT's Nukerbomber Last Messages --------------- 20424_ IW-KD6(z) destroyed. 20425_ VQ-Q7K(z) overheating. 20426_ VQ-Q7K(z) destroyed. 20426_ YW-7X3(z) pulls a Mak. Sword out of the Twisted Machinery. 20428_ YW-7X3(z) destroyed. 20433_ Magnetic Acceleration Cannon destroyed. 20434_ System corrupted: Heat flow error (+192). 20435_ Imp. EM Pulse Cannon destroyed. 20437_ 99-TNT: "A little bot told me Zion's under atttack, is this your doing?!" 20437_ Hvy. Treads destroyed. 20439_ Plasma Cannon destroyed. 20439_ Focal Shield destroyed. 20443_ Imp. Core Shielding destroyed. 20443_ Lgt. Angular Momentum Engine destroyed. 20443_ Imp. Medium Treads destroyed. 20447_ Mak. Armor Plating destroyed. 20451_ System corrupted: Matter fused (-6). 20451_ Imp. Medium Treads destroyed. 20451_ Hvy. Beamcaster destroyed. Map ----- +----------------------------------------------------+ | #?########""" """#?##????#????#???####? | | ?###??#####"" """#######??###???###?### | | #?#########""" " ""#####?####????????##### | | ?##???###""#"" """ """#"###?###????????????? | | ?#?#????##""" """ " """#######???????????#? | | ??###?###""" """ """"##?##??????????#?# | | ??#??#### ""####???????????#?# | | ?######## ## ## ""########?##??????# | | #??#?#### # # ""######??##?#?#?##?# | | ######""" """ """####?#?############ | | ?###"#" """ """#######?##?#?#?#### | | #####"" """ """#######?############ | | ######" # # """########?#??######?## | | #####"""" ## ## = ""##############?#?##### | | #######"" %""##############?######## | | #######""" "" *""####################?## | | #####?###" ""########""########?#### | | ########""""" " """###""#""############# | | ###""##"#""""" " """"##"""""""########## | | """""""#"""""""" " """""""" """"#"####### | | """"" """"""""""" * * """"""#""""# | | %= = = """"""""" | | = = = | | """"""""" """""" [ | | """##""""" """"" d | | """####"" "" @ """ | | "##"##"" "" """" | | """###"" """ "#"" | | """#""" """" " z """ | | ""####""""" """" """" | | ""####""""" """ " "#""""" | | "##""""" "" """" """""""" | | """##""" """""#"" """"""" | | #""#""" """"#""" | | #"##""" """" """##""" | | #"####" """""" ""####"" """ "" | | ######"" """##" """###"" """" """ | | #"####"" ""###"" """#####""""""" "#" | | #""###""" ""###""" ""######"""#""""" "## | | #"####"""" """####"" ""#####"#""###"""""# | | ?"#####""""""""#"####"" """"""##?#########"""##" | | #""#######"""""#######"""""""#############?#####?? | | #""###########""###?#"""""""#####?###?#####?##??#? | | ###"#########?##???############?##########??###### | | "?#"?###??##?####?###?########?####?###?##?#??##?# | | "?#""##???###??#?#?#?##?###??#??#?###??#?#?#??##?? | | "?###?#?##?#?###?#####?#?#####??#?####????????##?? | | ""#"###?#??????#?#?##?#???##????#???#?#?#??####?#? | | "?#?#???#?#?#?#?#???????#?#??????#???#???#?????#?? | | ""?"#?????????????????#??#???????????????????????? | +----------------------------------------------------+ Best States ------------- Heat Dissipation 56 Energy Generation 21 Energy Capacity 900 Matter Stores 300 Matter Capacity 300 Sight Range 16 Terrain Scan Range 20 Terrain Scan Density 210 Armor Coverage 1200 Resistance: KI 40 Resistance: TH 35 Resistance: EX 20 Resistance: EM 20 Resistance: I 20 Resistance: S 20 Resistance: P 20 Core Shielding 30 Evasion (%) 55 Targeting Accuracy 8 Recoil Reduction 4 Salvage Targeting 4 Offensive Hacking 22 Defensive Hacking 12 Item Schematics ----------------- Hvy. Assault Cannon | -8/Materials | Scanalyzed Imp. Lightning Gun | -7/Factory | Hacked Variable Charge Gun | -7/Data Miner | Free Force Field | -7/Data Miner | Free Myomer Leg | -7/Data Miner | Free Adv. Power Amplifier | -7/Data Miner | Free Mass Driver | -7/Data Miner | Free Imp. Weapon Cycler | -7/Data Miner | Free Antimatter Cannon | -7/Data Miner | Free Exp. Propulsion Shielding | -7/Data Miner | Free Lgt. Regenerative Plating | -7/Data Miner | Free Combat Drone Bay | -7/Data Miner | Free Med. Treads | -6/Factory | Hacked Hvy. Treads | -6/Factory | Hacked Imp. Medium Treads | -6/Factory | Scanalyzed Enh. Armored Medium Treads | -6/Factory | Hacked HERF Cannon | -6/Zion | Archive Mni. Drone Bay | -6/Zion | Archive Hpw. Shock Rifle | -6/Zion | Archive Hyp. Gauss Rifle | -6/Zion | Archive Phasing Sabre | -6/Zion | Archive Imp. Shock Absorption System | -6/Zion | Archive Thermal Shield | -6/Zion | Archive Hardcell Cannon | -6/Zion | Archive Imp. Remote Shield | -6/Zion | Archive Adv. Sensor Array | -6/Zion | Archive EM Disruption Field | -6/Zion | Archive Imp. Transmission Jammer | -6/Zion | Archive Phase Cannon | -6/Zion | Archive Thermic Laser | -6/Zion | Archive Imp. Kinecellerator | -6/Zion | Archive Robot Schematics ------------------ G-50 Soldier | -7/Data Miner | Free O-24 Administrator | -7/Data Miner | Free B-48 Gladiator | -7/Data Miner | Free A-15 Conveyor | -7/Data Miner | Free M-22 Extractor | -6/Zion | Archive L-41 Fighter | -6/Zion | Archive T-07 Excavator | -6/Zion | Archive Fabricated ------------ Hvy. Treads | x2 | -6/Factory Hvy. Treads | x2 | -6/Factory Alien Tech Used ----------------- None Achievements -------------- None Challenges ------------ None Game ------ Seed ScatterCryofiberProcessor Manual? 0 Play Time 02:04:12 Cumulative 225.0 hours Start 2023.06.18 @ 00:48:58 End 2023.06.18 @ 03:55:43 Sessions 1 Manual Loads 0 Difficulty Adventurer Special Mode None Game No. 168 Rogue 63 Adventurer 79 Explorer 26 Win Type - Total 1 Types 1/0/0/0/0/0/0/0/0 Lore% 60 Gallery% 71 Achievement% 68 Wizard Run 0 Options --------- ASCII 0 Keyboard 0 Movement Mouse Keybinds 0 Fullscreen 0 Font 16/Smallcaps Map View 76x50 Tactical HUD 1 Map Filters NONE Filters BRIGHTNESS(115)|SATURATION(100)|LOW_CONTRAST(0,16,30) Steam 1 RUN: d8cd72b5-a2ab-4811-aaae-4787f19cb615